[Event "Early-Titled-Tuesday-Blitz-December-26-2023"]
[Site "Chess.com"]
[Date "2023.12.26"]
[Round "3"]
[White "ChessArchitect64"]
[Black "ChessRespected"]
[Result "0-1"]
[WhiteElo "2273"]
[BlackElo "2584"]
[TimeControl "180+1"]
[EndTime "8:27:15 PST"]
[Termination "ChessRespected won by checkmate"]

1. d4 {[%clk 0:02:34.2]} 1... d5 {[%clk 0:02:58.8]} 2. Nf3 {[%clk 0:02:33.8]}
2... Nf6 {[%clk 0:02:57.5]} 3. e3 {[%clk 0:02:34.2]} 3... c6 {[%clk 0:02:54.6]}
4. Bd3 {[%clk 0:02:34.1]} 4... Bg4 {[%clk 0:02:41.9]} 5. O-O {[%clk 0:02:31.8]}
5... Nbd7 {[%clk 0:02:42]} 6. Nbd2 {[%clk 0:02:31.9]} 6... e5 {[%clk 0:02:39.9]}
7. dxe5 {[%clk 0:02:31]} 7... Nxe5 {[%clk 0:02:40.1]} 8. Be2 {[%clk 0:02:31.2]}
8... Bxf3 {[%clk 0:02:31.2]} 9. Nxf3 {[%clk 0:02:30.4]} 9... Bd6 {[%clk
0:02:29.5]} 10. c4 {[%clk 0:02:10.2]} 10... Nxc4 {[%clk 0:02:22.8]} 11. Bxc4
{[%clk 0:02:05]} 11... dxc4 {[%clk 0:02:23.7]} 12. Qc2 {[%clk 0:02:04.8]} 12...
O-O {[%clk 0:02:07.8]} 13. Qxc4 {[%clk 0:02:03.5]} 13... Qe7 {[%clk 0:02:02]}
14. b3 {[%clk 0:01:58.1]} 14... Rfd8 {[%clk 0:02:00.5]} 15. Bb2 {[%clk
0:01:56.8]} 15... Ba3 {[%clk 0:02:00.6]} 16. Bxa3 {[%clk 0:01:24.8]} 16... Qxa3
{[%clk 0:02:01.5]} 17. e4 {[%clk 0:01:21.6]} 17... a5 {[%clk 0:01:55.4]} 18. e5
{[%clk 0:01:20.8]} 18... Nd5 {[%clk 0:01:55]} 19. Qe4 {[%clk 0:01:12.4]} 19...
Nc3 {[%clk 0:01:48.7]} 20. Qf5 {[%clk 0:00:52.9]} 20... g6 {[%clk 0:01:43.5]}
21. Qc2 {[%clk 0:00:43.8]} 21... Nd5 {[%clk 0:01:34.3]} 22. Rad1 {[%clk
0:00:28.4]} 22... a4 {[%clk 0:01:31.6]} 23. bxa4 {[%clk 0:00:24]} 23... Qxa4
{[%clk 0:01:32.5]} 24. Qc5 {[%clk 0:00:13.3]} 24... Qa3 {[%clk 0:01:23.3]} 25.
Qc2 {[%clk 0:00:06.8]} 25... Qxa2 {[%clk 0:01:23.3]} 26. Qe4 {[%clk 0:00:07.1]}
26... Nc3 {[%clk 0:01:20.8]} 27. Rxd8+ {[%clk 0:00:07]} 27... Rxd8 {[%clk
0:01:20.2]} 28. Qh4 {[%clk 0:00:07.7]} 28... Ra8 {[%clk 0:00:52.3]} 29. Ng5
{[%clk 0:00:07.8]} 29... h5 {[%clk 0:00:46]} 30. e6 {[%clk 0:00:08]} 30... Qe2
{[%clk 0:00:37.5]} 31. exf7+ {[%clk 0:00:07.8]} 31... Kf8 {[%clk 0:00:28.4]} 32.
Nh7+ {[%clk 0:00:08.3]} 32... Kg7 {[%clk 0:00:27.1]} 33. Qf6+ {[%clk 0:00:08.8]}
33... Kxh7 {[%clk 0:00:25.4]} 34. f8=Q {[%clk 0:00:09.3]} 34... Qxf1+ {[%clk
0:00:25]} 35. Kxf1 {[%clk 0:00:08.1]} 35... Ra1# {[%clk 0:00:25.2]} 0-1

[Event "Early-Titled-Tuesday-Blitz-December-26-2023"]
[Site "Chess.com"]
[Date "2023.12.26"]
[Round "3"]
[White "mbojan"]
[Black "Herzog2012"]
[Result "1-0"]
[WhiteElo "2911"]
[BlackElo "2526"]
[TimeControl "180+1"]
[EndTime "8:27:16 PST"]
[Termination "mbojan won on time"]

1. a3 {[%clk 0:03:00.9]} 1... Nf6 {[%clk 0:02:46.9]} 2. h3 {[%clk 0:02:59.1]}
2... e6 {[%clk 0:02:26.9]} 3. e3 {[%clk 0:02:56.5]} 3... c5 {[%clk 0:02:24.5]}
4. Nf3 {[%clk 0:02:54.1]} 4... Be7 {[%clk 0:02:24.1]} 5. d4 {[%clk 0:02:53.8]}
5... cxd4 {[%clk 0:02:22.6]} 6. exd4 {[%clk 0:02:53.9]} 6... O-O {[%clk
0:02:22.7]} 7. c4 {[%clk 0:02:54.6]} 7... b6 {[%clk 0:02:22.2]} 8. Nc3 {[%clk
0:02:54.8]} 8... d5 {[%clk 0:02:21.4]} 9. cxd5 {[%clk 0:02:51]} 9... Nxd5 {[%clk
0:02:20.4]} 10. Bd3 {[%clk 0:02:51.1]} 10... Ba6 {[%clk 0:02:13.4]} 11. O-O
{[%clk 0:02:36]} 11... Nxc3 {[%clk 0:02:11]} 12. bxc3 {[%clk 0:02:35.9]} 12...
Bxd3 {[%clk 0:02:05.2]} 13. Qxd3 {[%clk 0:02:36.8]} 13... Nc6 {[%clk 0:02:04.1]}
14. Bf4 {[%clk 0:02:20.9]} 14... Qd7 {[%clk 0:01:58.9]} 15. Rfd1 {[%clk
0:02:16]} 15... Rfd8 {[%clk 0:01:55.8]} 16. Rac1 {[%clk 0:02:11.1]} 16... Bf6
{[%clk 0:01:54.9]} 17. Ng5 {[%clk 0:01:55.7]} 17... Bxg5 {[%clk 0:01:48.4]} 18.
Bxg5 {[%clk 0:01:56.6]} 18... f6 {[%clk 0:01:40.8]} 19. Be3 {[%clk 0:01:56.3]}
19... e5 {[%clk 0:01:32.4]} 20. d5 {[%clk 0:01:54]} 20... Ne7 {[%clk 0:01:09.7]}
21. c4 {[%clk 0:01:54.3]} 21... Rac8 {[%clk 0:01:09.7]} 22. d6 {[%clk
0:01:31.7]} 22... Nf5 {[%clk 0:00:57.3]} 23. c5 {[%clk 0:01:30.7]} 23... bxc5
{[%clk 0:00:41.5]} 24. Rxc5 {[%clk 0:01:20.7]} 24... Nxd6 {[%clk 0:00:13.5]} 25.
Qxd6 {[%clk 0:01:07.4]} 25... Rxc5 {[%clk 0:00:02.3]} 26. Qxd7 {[%clk
0:01:05.4]} 26... Rxd7 {[%clk 0:00:03.2]} 27. Rxd7 {[%clk 0:01:05.8]} 27... Rc2
{[%clk 0:00:02]} 28. Rxa7 {[%clk 0:01:05.6]} 28... f5 {[%clk 0:00:01.9]} 29. g3
{[%clk 0:01:05.5]} 29... h6 {[%clk 0:00:01.7]} 30. h4 {[%clk 0:01:05.3]} 30...
Kh7 {[%clk 0:00:01.1]} 31. a4 {[%clk 0:01:02.8]} 31... Ra2 {[%clk 0:00:01.6]}
32. a5 {[%clk 0:01:03]} 32... Kg6 {[%clk 0:00:02.1]} 33. a6 {[%clk 0:01:02.8]}
33... Kh5 {[%clk 0:00:02.2]} 34. Kg2 {[%clk 0:00:59.5]} 34... g5 {[%clk
0:00:01.6]} 35. hxg5 {[%clk 0:00:50.9]} 35... hxg5 {[%clk 0:00:02.5]} 36. Ra8
{[%clk 0:00:51.5]} 36... f4 {[%clk 0:00:01.7]} 37. Bc5 {[%clk 0:00:51.7]} 37...
Kg4 {[%clk 0:00:01.7]} 38. a7 {[%clk 0:00:46.9]} 38... f3+ {[%clk 0:00:02.1]}
39. Kh2 {[%clk 0:00:47]} 39... Ra6 {[%clk 0:00:01.9]} 40. Rh8 {[%clk 0:00:45.2]}
1-0

[Event "Early-Titled-Tuesday-Blitz-December-26-2023"]
[Site "Chess.com"]
[Date "2023.12.26"]
[Round "3"]
[White "Klavdia_Nik"]
[Black "Sofia_Blokhin"]
[Result "0-1"]
[WhiteElo "1984"]
[BlackElo "2325"]
[TimeControl "180+1"]
[EndTime "8:27:18 PST"]
[Termination "Sofia_Blokhin won on time"]

1. Nf3 {[%clk 0:02:55.2]} 1... g6 {[%clk 0:02:57.7]} 2. c4 {[%clk 0:02:53.4]}
2... Bg7 {[%clk 0:02:56.5]} 3. Nc3 {[%clk 0:02:52.7]} 3... f5 {[%clk 0:02:56.3]}
4. d4 {[%clk 0:02:48.8]} 4... Nf6 {[%clk 0:02:55.7]} 5. d5 {[%clk 0:02:42.9]}
5... O-O {[%clk 0:02:54.2]} 6. g3 {[%clk 0:02:37.7]} 6... d6 {[%clk 0:02:50.3]}
7. Bg2 {[%clk 0:02:36.4]} 7... c6 {[%clk 0:02:50.5]} 8. O-O {[%clk 0:02:27]}
8... cxd5 {[%clk 0:02:47.7]} 9. cxd5 {[%clk 0:02:25.3]} 9... Na6 {[%clk
0:02:47]} 10. Nd4 {[%clk 0:02:21.1]} 10... Nc5 {[%clk 0:02:43.2]} 11. Bg5 {[%clk
0:02:00.2]} 11... h6 {[%clk 0:02:39.9]} 12. Bxf6 {[%clk 0:01:59.9]} 12... Bxf6
{[%clk 0:02:36.2]} 13. e3 {[%clk 0:02:00.8]} 13... Bd7 {[%clk 0:02:24.8]} 14. b4
{[%clk 0:01:55.6]} 14... Na6 {[%clk 0:02:21]} 15. Rb1 {[%clk 0:01:47.2]} 15...
Rc8 {[%clk 0:02:20.2]} 16. Qd3 {[%clk 0:01:43.4]} 16... Nc7 {[%clk 0:02:07.1]}
17. b5 {[%clk 0:01:33.2]} 17... a6 {[%clk 0:02:00.6]} 18. a4 {[%clk 0:01:32.1]}
18... axb5 {[%clk 0:01:57.8]} 19. axb5 {[%clk 0:01:31.8]} 19... Na8 {[%clk
0:01:50.6]} 20. Nce2 {[%clk 0:01:22.6]} 20... Nb6 {[%clk 0:01:46.9]} 21. Ne6
{[%clk 0:01:21.2]} 21... Bxe6 {[%clk 0:01:43.6]} 22. dxe6 {[%clk 0:01:22.1]}
22... Na4 {[%clk 0:01:29.2]} 23. Nf4 {[%clk 0:01:10.8]} 23... Nc5 {[%clk
0:01:27.9]} 24. Qd5 {[%clk 0:01:09.4]} 24... Kg7 {[%clk 0:01:25.2]} 25. e4
{[%clk 0:00:56.9]} 25... Be5 {[%clk 0:01:11.4]} 26. Nd3 {[%clk 0:00:35.7]} 26...
fxe4 {[%clk 0:00:44.5]} 27. Nxe5 {[%clk 0:00:31.8]} 27... Rf5 {[%clk 0:00:44.5]}
28. Rbd1 {[%clk 0:00:19.3]} 28... Rxe5 {[%clk 0:00:42.7]} 29. Qd4 {[%clk
0:00:11.3]} 29... Nxe6 {[%clk 0:00:39.7]} 30. Qb2 {[%clk 0:00:11.1]} 30... Kh7
{[%clk 0:00:31.8]} 31. f4 {[%clk 0:00:08.3]} 31... exf3 {[%clk 0:00:28.4]} 32.
Bxf3 {[%clk 0:00:03]} 32... Qb6+ {[%clk 0:00:28.6]} 33. Kh1 {[%clk 0:00:03.1]}
33... Qxb5 {[%clk 0:00:27.8]} 0-1

[Event "Early-Titled-Tuesday-Blitz-December-26-2023"]
[Site "Chess.com"]
[Date "2023.12.26"]
[Round "3"]
[White "Alenzer"]
[Black "KorolDimitriy75"]
[Result "0-1"]
[WhiteElo "2067"]
[BlackElo "2360"]
[TimeControl "180+1"]
[EndTime "8:27:20 PST"]
[Termination "KorolDimitriy75 won on time"]

1. e4 {[%clk 0:02:57.3]} 1... c5 {[%clk 0:02:59.5]} 2. Nf3 {[%clk 0:02:57.3]}
2... d6 {[%clk 0:02:58.7]} 3. c3 {[%clk 0:02:56.3]} 3... Nf6 {[%clk 0:02:58.3]}
4. h3 {[%clk 0:02:55.6]} 4... g6 {[%clk 0:02:58.1]} 5. d4 {[%clk 0:02:54.7]}
5... cxd4 {[%clk 0:02:57]} 6. Qxd4 {[%clk 0:02:53.5]} 6... Nc6 {[%clk
0:02:41.4]} 7. Qd3 {[%clk 0:02:53.1]} 7... Bg7 {[%clk 0:02:41]} 8. Be2 {[%clk
0:02:49.4]} 8... O-O {[%clk 0:02:40.8]} 9. Be3 {[%clk 0:02:33.4]} 9... a6 {[%clk
0:02:37.1]} 10. Nbd2 {[%clk 0:02:33.3]} 10... b5 {[%clk 0:02:37]} 11. O-O {[%clk
0:02:33]} 11... Bb7 {[%clk 0:02:36.1]} 12. a3 {[%clk 0:02:31.4]} 12... Qc7
{[%clk 0:02:30.1]} 13. Nd4 {[%clk 0:02:29.7]} 13... Ne5 {[%clk 0:02:15.8]} 14.
Qc2 {[%clk 0:02:25.4]} 14... Nc4 {[%clk 0:02:15.6]} 15. Nxc4 {[%clk 0:01:55.1]}
15... bxc4 {[%clk 0:02:16.5]} 16. f3 {[%clk 0:01:47.5]} 16... Rab8 {[%clk
0:02:11.7]} 17. Qa4 {[%clk 0:01:24.8]} 17... Rfc8 {[%clk 0:02:00.5]} 18. Rab1
{[%clk 0:00:58.4]} 18... d5 {[%clk 0:01:43.8]} 19. exd5 {[%clk 0:00:25]} 19...
Nxd5 {[%clk 0:01:44.7]} 20. Bf2 {[%clk 0:00:22]} 20... Nf4 {[%clk 0:01:42.3]}
21. Rfe1 {[%clk 0:00:20.6]} 21... e5 {[%clk 0:01:28.2]} 22. Nc2 {[%clk 0:00:15]}
22... e4 {[%clk 0:01:22.1]} 23. Nd4 {[%clk 0:00:09.8]} 23... Nxe2+ {[%clk
0:01:06.6]} 24. Rxe2 {[%clk 0:00:08.9]} 24... exf3 {[%clk 0:01:06.6]} 25. Nxf3
{[%clk 0:00:08.8]} 25... Bxf3 {[%clk 0:01:05.8]} 26. gxf3 {[%clk 0:00:09.3]}
26... Qf4 {[%clk 0:00:59.1]} 27. Kg2 {[%clk 0:00:09.1]} 27... Qg5+ {[%clk
0:00:54.4]} 28. Kf1 {[%clk 0:00:07.9]} 28... Qf5 {[%clk 0:00:54.6]} 29. Qd1
{[%clk 0:00:03.7]} 29... Qxh3+ {[%clk 0:00:51.1]} 30. Kg1 {[%clk 0:00:04]} 30...
Rd8 {[%clk 0:00:45.6]} 31. Bd4 {[%clk 0:00:03.9]} 31... Qg3+ {[%clk 0:00:37.9]}
32. Rg2 {[%clk 0:00:04.2]} 32... Qf4 {[%clk 0:00:37.8]} 33. Qe2 {[%clk
0:00:02.3]} 33... Bxd4+ {[%clk 0:00:36.9]} 34. cxd4 {[%clk 0:00:02.8]} 34...
Qxd4+ {[%clk 0:00:37.4]} 35. Kh1 {[%clk 0:00:03.1]} 35... c3 {[%clk 0:00:37.5]}
0-1

[Event "Early-Titled-Tuesday-Blitz-December-26-2023"]
[Site "Chess.com"]
[Date "2023.12.26"]
[Round "3"]
[White "Azalea95"]
[Black "SmirnovTimofey2000"]
[Result "1-0"]
[WhiteElo "2354"]
[BlackElo "2016"]
[TimeControl "180+1"]
[EndTime "8:27:21 PST"]
[Termination "Azalea95 won by resignation"]

1. e4 {[%clk 0:03:00.9]} 1... e5 {[%clk 0:02:59.6]} 2. Nf3 {[%clk 0:02:56.4]}
2... Nf6 {[%clk 0:02:58.9]} 3. Nxe5 {[%clk 0:02:56]} 3... d6 {[%clk 0:02:59]} 4.
Nf3 {[%clk 0:02:55.8]} 4... Nxe4 {[%clk 0:02:59.5]} 5. Nc3 {[%clk 0:02:56.4]}
5... Nxc3 {[%clk 0:02:59.4]} 6. dxc3 {[%clk 0:02:57.3]} 6... Be7 {[%clk
0:02:59.8]} 7. Be3 {[%clk 0:02:40.1]} 7... Be6 {[%clk 0:02:58]} 8. Qd2 {[%clk
0:02:30.1]} 8... Nd7 {[%clk 0:02:57.3]} 9. O-O-O {[%clk 0:02:28.3]} 9... Ne5
{[%clk 0:02:57.4]} 10. Be2 {[%clk 0:02:02.2]} 10... Nc4 {[%clk 0:02:44.5]} 11.
Bxc4 {[%clk 0:02:00.7]} 11... Bxc4 {[%clk 0:02:45.4]} 12. Kb1 {[%clk 0:01:52.6]}
12... Qd7 {[%clk 0:02:40.5]} 13. Qd4 {[%clk 0:01:40.2]} 13... Qe6 {[%clk
0:02:16.1]} 14. b3 {[%clk 0:01:29.8]} 14... Ba6 {[%clk 0:01:52.7]} 15. Rhe1
{[%clk 0:01:15.8]} 15... O-O {[%clk 0:01:33.1]} 16. Bg5 {[%clk 0:01:09.2]} 16...
Bf6 {[%clk 0:00:51.8]} 17. Bxf6 {[%clk 0:00:38.6]} 17... Qxf6 {[%clk 0:00:51.4]}
18. Qxf6 {[%clk 0:00:38.8]} 18... gxf6 {[%clk 0:00:51.7]} 19. Re7 {[%clk
0:00:38.5]} 19... Rfe8 {[%clk 0:00:38.8]} 20. Rxc7 {[%clk 0:00:35.9]} 20... Be2
{[%clk 0:00:38.3]} 21. Rxd6 {[%clk 0:00:35.1]} 21... Bxf3 {[%clk 0:00:32.5]} 22.
gxf3 {[%clk 0:00:36]} 22... Kg7 {[%clk 0:00:15.3]} 23. Rdd7 {[%clk 0:00:34.1]}
23... Rf8 {[%clk 0:00:14.6]} 24. Rxb7 {[%clk 0:00:34.5]} 24... Rae8 {[%clk
0:00:13.7]} 25. Rxa7 {[%clk 0:00:34.2]} 25... Re1+ {[%clk 0:00:13.3]} 26. Kb2
{[%clk 0:00:34.4]} 26... Re2 {[%clk 0:00:13.6]} 27. a4 {[%clk 0:00:27.7]} 27...
Rxf2 {[%clk 0:00:13]} 28. a5 {[%clk 0:00:28.1]} 28... Rxf3 {[%clk 0:00:13.3]}
29. a6 {[%clk 0:00:28.2]} 29... Rf5 {[%clk 0:00:12.6]} 30. b4 {[%clk 0:00:28]}
30... Rb5 {[%clk 0:00:11.5]} 31. Rxf7+ {[%clk 0:00:21.1]} 31... Rxf7 {[%clk
0:00:11.5]} 32. Rxf7+ {[%clk 0:00:22]} 32... Kxf7 {[%clk 0:00:12]} 33. a7 {[%clk
0:00:22.9]} 1-0

[Event "Early-Titled-Tuesday-Blitz-December-26-2023"]
[Site "Chess.com"]
[Date "2023.12.26"]
[Round "3"]
[White "MIM06"]
[Black "PavelChernomordik"]
[Result "1-0"]
[WhiteElo "2257"]
[BlackElo "2423"]
[TimeControl "180+1"]
[EndTime "8:27:22 PST"]
[Termination "MIM06 won by resignation"]

1. e4 {[%clk 0:03:00.9]} 1... g6 {[%clk 0:02:59.8]} 2. d4 {[%clk 0:03:00.4]}
2... Bg7 {[%clk 0:02:59.7]} 3. Nc3 {[%clk 0:02:56.2]} 3... d6 {[%clk 0:02:59.6]}
4. g3 {[%clk 0:02:55.8]} 4... h5 {[%clk 0:02:58.9]} 5. h3 {[%clk 0:02:53.8]}
5... Nc6 {[%clk 0:02:58.7]} 6. Nge2 {[%clk 0:02:53.3]} 6... e5 {[%clk
0:02:56.6]} 7. Be3 {[%clk 0:02:52.8]} 7... f5 {[%clk 0:02:53.9]} 8. Bg2 {[%clk
0:02:48.1]} 8... h4 {[%clk 0:02:43.8]} 9. Qd2 {[%clk 0:02:34.5]} 9... hxg3
{[%clk 0:02:36]} 10. fxg3 {[%clk 0:02:32.4]} 10... fxe4 {[%clk 0:02:35.6]} 11.
Bxe4 {[%clk 0:02:24.9]} 11... Bf5 {[%clk 0:02:31.8]} 12. dxe5 {[%clk 0:02:21.4]}
12... Nxe5 {[%clk 0:02:30.7]} 13. O-O-O {[%clk 0:02:12.9]} 13... Ne7 {[%clk
0:02:25.1]} 14. Nd4 {[%clk 0:02:07.6]} 14... Bxe4 {[%clk 0:02:20.5]} 15. Nxe4
{[%clk 0:02:08.5]} 15... Nc4 {[%clk 0:02:20.3]} 16. Qd3 {[%clk 0:02:01.6]} 16...
Nxe3 {[%clk 0:02:19.6]} 17. Qxe3 {[%clk 0:02:01.6]} 17... Bh6 {[%clk 0:02:19.1]}
18. Ng5 {[%clk 0:01:54.7]} 18... O-O {[%clk 0:02:01.6]} 19. Nde6 {[%clk
0:01:38.4]} 19... Nf5 {[%clk 0:02:01.2]} 20. Qb3 {[%clk 0:01:35.3]} 20... Kh8
{[%clk 0:01:35]} 21. Nxd8 {[%clk 0:01:32.4]} 21... Bxg5+ {[%clk 0:01:34]} 22.
Kb1 {[%clk 0:01:31.7]} 22... Raxd8 {[%clk 0:01:33.6]} 23. h4 {[%clk 0:01:31.6]}
23... Bf6 {[%clk 0:01:30.7]} 24. h5 {[%clk 0:01:29.8]} 24... g5 {[%clk
0:01:29.3]} 25. Rhf1 {[%clk 0:01:26.5]} 25... Be5 {[%clk 0:01:28.5]} 26. g4
{[%clk 0:01:24.4]} 26... Nd4 {[%clk 0:01:16]} 27. Qe3 {[%clk 0:01:20.4]} 27...
c5 {[%clk 0:01:13.6]} 28. Qxg5 {[%clk 0:01:19.4]} 28... Nf3 {[%clk 0:01:00.9]}
29. Qh6+ {[%clk 0:01:14.6]} 29... Kg8 {[%clk 0:01:00.4]} 30. Qe6+ {[%clk
0:01:09.8]} 30... Kh8 {[%clk 0:01:00.1]} 31. Qd5 {[%clk 0:01:10.1]} 31... Nd4
{[%clk 0:00:46.8]} 32. g5 {[%clk 0:01:07.7]} 32... Nf5 {[%clk 0:00:40.8]} 33.
Qd3 {[%clk 0:00:52.5]} 33... Ng3 {[%clk 0:00:32.4]} 34. Rxf8+ {[%clk 0:00:52.5]}
34... Rxf8 {[%clk 0:00:32.3]} 35. h6 {[%clk 0:00:53.4]} 35... Nf5 {[%clk
0:00:24.1]} 36. a4 {[%clk 0:00:52]} 36... Nd4 {[%clk 0:00:21.8]} 37. g6 {[%clk
0:00:49.7]} 37... Re8 {[%clk 0:00:08]} 38. g7+ {[%clk 0:00:44.1]} 38... Kg8
{[%clk 0:00:07.7]} 39. Qg6 {[%clk 0:00:42.9]} 1-0

[Event "Early-Titled-Tuesday-Blitz-December-26-2023"]
[Site "Chess.com"]
[Date "2023.12.26"]
[Round "3"]
[White "Philosopherrr"]
[Black "Grammnik"]
[Result "1/2-1/2"]
[WhiteElo "2389"]
[BlackElo "2209"]
[TimeControl "180+1"]
[EndTime "8:27:22 PST"]
[Termination "Game drawn by repetition"]

1. e4 {[%clk 0:02:53.8]} 1... c6 {[%clk 0:02:59.5]} 2. Nf3 {[%clk 0:02:52.1]}
2... d5 {[%clk 0:02:59.6]} 3. Nc3 {[%clk 0:02:51.1]} 3... dxe4 {[%clk
0:02:46.7]} 4. Nxe4 {[%clk 0:02:51.6]} 4... Nf6 {[%clk 0:02:46]} 5. Qe2 {[%clk
0:02:50.7]} 5... Nxe4 {[%clk 0:02:45.5]} 6. Qxe4 {[%clk 0:02:50.6]} 6... Qd5
{[%clk 0:02:45.6]} 7. Qxd5 {[%clk 0:02:48.7]} 7... cxd5 {[%clk 0:02:45.5]} 8. d4
{[%clk 0:02:44.6]} 8... Nc6 {[%clk 0:02:44.4]} 9. Bb5 {[%clk 0:02:44.4]} 9... f6
{[%clk 0:02:42.7]} 10. h3 {[%clk 0:02:37.9]} 10... Bf5 {[%clk 0:02:40.7]} 11. c3
{[%clk 0:02:35.1]} 11... e6 {[%clk 0:02:39.6]} 12. Bf4 {[%clk 0:02:34]} 12...
Kf7 {[%clk 0:02:37.9]} 13. O-O {[%clk 0:02:30.7]} 13... h5 {[%clk 0:02:35.8]}
14. Rfe1 {[%clk 0:02:28.8]} 14... g5 {[%clk 0:02:34.7]} 15. Bh2 {[%clk
0:02:27.2]} 15... Rc8 {[%clk 0:02:28.8]} 16. Nd2 {[%clk 0:02:22.3]} 16... h4
{[%clk 0:02:25.9]} 17. a4 {[%clk 0:02:10.6]} 17... g4 {[%clk 0:02:16.5]} 18.
hxg4 {[%clk 0:02:07.2]} 18... Bxg4 {[%clk 0:02:16.3]} 19. Nf1 {[%clk 0:02:07.7]}
19... Bh6 {[%clk 0:02:08.6]} 20. Ne3 {[%clk 0:02:07.1]} 20... Bh5 {[%clk
0:02:00.4]} 21. Ra3 {[%clk 0:02:01.7]} 21... Rhg8 {[%clk 0:01:58.2]} 22. Bxc6
{[%clk 0:01:57.1]} 22... Rxc6 {[%clk 0:01:56.9]} 23. Rb3 {[%clk 0:01:56.9]}
23... b6 {[%clk 0:01:43.6]} 24. a5 {[%clk 0:01:56.5]} 24... Bf3 {[%clk
0:01:43.3]} 25. Kf1 {[%clk 0:01:56.1]} 25... Bxe3 {[%clk 0:01:39.4]} 26. gxf3
{[%clk 0:01:52.1]} 26... Bh6 {[%clk 0:01:34.1]} 27. Ra1 {[%clk 0:01:51.1]} 27...
Kg6 {[%clk 0:01:27.4]} 28. axb6 {[%clk 0:01:50.2]} 28... Rxb6 {[%clk 0:01:24.4]}
29. Rxb6 {[%clk 0:01:49.6]} 29... axb6 {[%clk 0:01:24.7]} 30. Ra7 {[%clk
0:01:36.6]} 30... Kf5 {[%clk 0:01:21.2]} 31. Rh7 {[%clk 0:01:36.5]} 31... Bg5
{[%clk 0:01:17.9]} 32. Ke2 {[%clk 0:01:28.4]} 32... Ra8 {[%clk 0:01:17.3]} 33.
Kd3 {[%clk 0:00:53.7]} 33... Ra1 {[%clk 0:01:13]} 34. f4 {[%clk 0:00:52.2]}
34... Bxf4 {[%clk 0:01:09.2]} 35. Bxf4 {[%clk 0:00:50.7]} 35... Kxf4 {[%clk
0:01:09.5]} 36. Rxh4+ {[%clk 0:00:51.4]} 36... Kf5 {[%clk 0:01:09.4]} 37. Rh7
{[%clk 0:00:46]} 37... Ra2 {[%clk 0:00:51.3]} 38. Kc2 {[%clk 0:00:41.6]} 38...
Ra1 {[%clk 0:00:48.4]} 39. Rb7 {[%clk 0:00:30.3]} 39... Rf1 {[%clk 0:00:48.1]}
40. Rxb6 {[%clk 0:00:30.7]} 40... Rxf2+ {[%clk 0:00:48.4]} 41. Kd3 {[%clk
0:00:31.4]} 41... e5 {[%clk 0:00:44.9]} 42. dxe5 {[%clk 0:00:31.6]} 42... fxe5
{[%clk 0:00:44.5]} 43. b4 {[%clk 0:00:32.2]} 43... Rf3+ {[%clk 0:00:41]} 44. Kc2
{[%clk 0:00:30]} 44... Ke4 {[%clk 0:00:41.1]} 45. Re6 {[%clk 0:00:30.2]} 45...
Rf2+ {[%clk 0:00:40.7]} 46. Kb3 {[%clk 0:00:29]} 46... Rf1 {[%clk 0:00:37.1]}
47. Kc2 {[%clk 0:00:26.8]} 47... Rf2+ {[%clk 0:00:37]} 48. Kb3 {[%clk
0:00:24.8]} 48... Rf1 {[%clk 0:00:37.3]} 49. Kb2 {[%clk 0:00:21.1]} 49... Rf2+
{[%clk 0:00:36.9]} 50. Kb3 {[%clk 0:00:20.4]} 1/2-1/2